fUSD/lending_fUSD_20260404
["ID","MTS","AMOUNT","RATE_DAILY","PERIOD"]
[419665442,1775264893879,-201.95961375,0.00010528,2]
[419665443,1775264893903,-21.63190671,0.00010528,2]
[419665444,1775264894614,-478.36809329,0.00010528,2]
[419665445,1775264894637,-500.0,0.00010528,2]
[419665446,1775264894660,-21.63190671,0.00010528,2]
[419665447,1775264895421,-326.22538369,0.00010528,2]
[419665448,1775264895449,-500.0,0.00010528,2]
[419665449,1775264895478,-173.77461631,0.00010528,2]
[419665450,1775264896206,-326.22538369,0.00010528,2]
[419665451,1775264896235,-500.0,0.00010528,2]
[419665452,1775264896262,-173.77461631,0.00010528,2]
[419665453,1775264897049,-326.22538369,0.00010528,2]
[419665454,1775264897076,-500.0,0.00010528,2]
[419665455,1775264897104,-173.77461631,0.00010528,2]
[419665456,1775264898739,-326.22538369,0.00010528,2]
[419665457,1775264898767,-500.0,0.00010528,2]
[419665458,1775264898795,-173.77461631,0.00010528,2]
[419665459,1775264899722,-326.22538369,0.00010528,2]
[419665460,1775264899750,-500.0,0.00010528,2]
[419665461,1775264899777,-173.77461631,0.00010528,2]
[419665462,1775264900457,-429.22993263,0.00010528,2]
[419665463,1775264900486,-500.0,0.00010528,2]
[419665464,1775264900516,-70.77006737,0.00010528,2]
[419665465,1775264900675,-429.22993263,0.00010528,2]
[419665466,1775264900704,-500.0,0.00010528,2]
[419665467,1775264900733,-70.77006737,0.00010528,2]
[419665468,1775264901342,-429.22993263,0.00010528,2]
[419665469,1775264901370,-500.0,0.00010528,2]
[419665470,1775264901398,-70.77006737,0.00010528,2]
[419665471,1775264902234,-429.22993263,0.00010528,2]
[419665472,1775264902265,-500.0,0.00010528,2]
[419665473,1775264902295,-70.77006737,0.00010528,2]
[419665474,1775264903083,-429.22993263,0.00010528,2]
[419665475,1775264903112,-500.0,0.00010528,2]
[419665476,1775264903140,-70.77006737,0.00010528,2]
[419665477,1775264903975,-429.22993263,0.00010528,2]
[419665478,1775264904010,-500.0,0.00010528,2]
[419665479,1775264904040,-70.77006737,0.00010528,2]
[419665480,1775264904778,-429.22993263,0.00010528,2]
[419665481,1775264904808,-500.0,0.00010528,2]
[419665482,1775264904837,-70.77006737,0.00010528,2]
[419665483,1775264905679,-429.22993263,0.00010528,2]
[419665484,1775264905709,-500.0,0.00010528,2]
[419665485,1775264905738,-70.77006737,0.00010528,2]
[419665486,1775264906646,-429.22993263,0.00010528,2]
[419665487,1775264906677,-500.0,0.00010528,2]
[419665488,1775264906707,-70.77006737,0.00010528,2]
[419665489,1775264907552,-429.22993263,0.00010528,2]
[419665490,1775264907582,-500.0,0.00010528,2]
[419665491,1775264907611,-70.77006737,0.00010528,2]
[419665492,1775264909008,-429.22993263,0.00010528,2]
[419665493,1775264909039,-500.0,0.00010528,2]
[419665494,1775264909068,-70.77006737,0.00010528,2]
[419665495,1775264909967,-429.22993263,0.00010528,2]
[419665496,1775264909997,-500.0,0.00010528,2]
[419665497,1775264910025,-70.77006737,0.00010528,2]
[419665498,1775264910900,-429.22993263,0.00010528,2]
[419665499,1775264910930,-500.0,0.00010528,2]
[419665500,1775264910958,-70.77006737,0.00010528,2]
[419665501,1775264915273,177.34888084,0.00010473,2]
[419665502,1775264918225,303.0,0.00010528,2]
[419665503,1775264926553,167.37214353,0.00010428,2]
[419665504,1775264929440,261.58916465,0.000101,2]
[419665505,1775264932508,167.37214353,0.00010429,2]
[419665506,1775264938507,167.37214353,0.00010429,2]
[419665507,1775264941191,300.0,0.00010527,2]
[419665508,1775264941405,300.0,0.00010527,2]
[419665509,1775264941534,300.0,0.00010527,2]
[419665510,1775264942340,-478.34322601,0.00010528,2]
[419665511,1775264942372,-521.65677399,0.00010528,2]
[419665512,1775264943386,-27.45651939,0.00010528,2]
[419665513,1775264943416,-549.11329338,0.00010528,2]
[419665514,1775264943446,-423.43018723,0.00010528,2]
[419665515,1775264944446,-125.68310615,0.00010528,2]
[419665516,1775264944475,-549.11329338,0.00010528,2]
[419665517,1775264944504,-325.20360047,0.00010528,2]
[419665518,1775264945489,-223.90969291,0.00010528,2]
[419665519,1775264945517,-549.11329338,0.00010528,2]
[419665520,1775264945547,-226.97701371,0.00010528,2]
[419665521,1775264946550,-322.13627967,0.00010528,2]
[419665522,1775264946580,-549.11329338,0.00010528,2]
[419665523,1775264946609,-128.75042695,0.00010528,2]
[419665524,1775264947591,-420.36286643,0.00010528,2]
[419665525,1775264947620,-549.11329338,0.00010528,2]
[419665526,1775264947650,-30.52384019,0.00010528,2]
[419665527,1775264947940,155.0,0.00010528,2]
[419665528,1775264948580,-518.58945319,0.00010528,2]
[419665529,1775264948610,-481.41054681,0.00010528,2]
[419665530,1775264949621,-67.70274657,0.00010528,2]
[419665531,1775264949650,-549.11329338,0.00010528,2]
[419665532,1775264949680,-383.18396005,0.00010528,2]
[419665533,1775264959096,-165.92933333,0.00010528,2]
[419665534,1775264959122,-549.11329338,0.00010528,2]
[419665535,1775264959149,-549.11329338,0.00010528,2]
[419665536,1775264959173,-563.8325216,0.00010528,2]
[419665537,1775264959195,-500.0,0.00010528,2]
[419665538,1775264959216,-272.67819877,0.00010528,2]
[419665539,1775264959239,-500.0,0.00010528,2]
[419665540,1775264959261,-500.0,0.00010528,2]
[419665541,1775264959282,-500.0,0.00010528,2]
[419665542,1775264959304,-500.0,0.00010528,2]
[419665543,1775264959325,-500.0,0.00010528,2]
[419665544,1775264959353,-224.87370928,0.00010528,2]
[419665545,1775264959375,-150.0,0.00010528,2]
[419665546,1775264959398,-250.0,0.00010529,2]
[419665547,1775264959425,-2841.95896646,0.00010529,2]
[419665548,1775264960071,-50223.53383354,0.00010529,2]
[419665549,1775264961616,-483.0,0.00010529,2]
[419665550,1775264969540,509.78900732,0.00010519,2]
[419665551,1775264974087,-202171.22379405,0.00010529,2]
[419665552,1775264979235,303.0,0.00010529,2]
[419665554,1775265000827,-1000.0,0.00010529,2]
[419665555,1775265000856,-500.0,0.00010573,2]
[419665556,1775265000886,-500.0,0.00010573,2]
[419665557,1775265000915,-245.62200129,0.00010573,2]
[419665558,1775265000943,-8.76599742,0.00010573,2]
[419665559,1775265000973,1977.25638813,0.0001,2]
[419665560,1775265001203,-491.23400258,0.00010573,2]
[419665561,1775265001232,-500.0,0.00010573,2]
[419665562,1775265001267,-284.41,0.000106,2]
[419665563,1775265001299,-600.0,0.000106,3]
[419665564,1775265001330,-200.0,0.00010633,2]
[419665565,1775265001410,-1200.0,0.000107,3]
[419665566,1775265001439,-200.0,0.0001074,2]
[419665567,1775265001469,-500.0,0.00010764,2]
[419665568,1775265001498,-500.0,0.00010764,2]
[419665569,1775265001614,-1200.0,0.00010572,2]
[419665570,1775265001643,-500.0,0.00010764,2]
[419665571,1775265001672,-500.0,0.00010764,2]
[419665572,1775265001702,-100.01,0.00010764,2]
[419665573,1775265001846,-399.99,0.00010764,2]
[419665574,1775265001876,-500.0,0.00010764,2]
[419665575,1775265001906,-500.0,0.00010764,2]
[419665576,1775265001935,-500.0,0.00010764,2]
[419665577,1775265001965,-500.0,0.00010764,2]
[419665578,1775265002152,-500.0,0.00010764,2]
[419665579,1775265002182,-151.0,0.00010764,2]
[419665580,1775265002215,-500.0,0.00010764,2]
[419665581,1775265002246,-151.0,0.00010764,2]
[419665582,1775265002275,-151.0,0.00010764,2]
[419665583,1775265002306,-500.0,0.00010764,2]
[419665584,1775265002334,-151.0,0.00010764,2]
[419665585,1775265002365,-292.01,0.00010764,2]
[419665586,1775265004215,-270.18899128,0.000107,2]
[419665587,1775265004249,-207.99,0.00010764,2]
[419665588,1775265004282,-151.0,0.00010764,2]
[419665589,1775265004316,-500.0,0.00010764,2]
[419665590,1775265004349,-151.0,0.00010764,2]
[419665591,1775265004383,-500.0,0.00010764,2]
[419665592,1775265004416,-151.0,0.00010764,2]
[419665593,1775265004450,-500.0,0.00010764,2]
[419665594,1775265004509,-151.0,0.00010764,2]
[419665595,1775265004545,-500.0,0.00010764,2]
[419665596,1775265004580,-151.0,0.00010764,2]
[419665597,1775265004615,-500.0,0.00010764,2]
[419665598,1775265004651,-151.0,0.00010764,2]
[419665599,1775265004685,-500.0,0.00010764,2]
[419665600,1775265004720,-151.0,0.00010764,2]
[419665601,1775265004756,-292.01,0.00010764,2]
[419665602,1775265004805,-207.99,0.00010764,2]
[419665603,1775265004840,-151.0,0.00010764,2]
[419665604,1775265004873,-500.0,0.00010764,2]
[419665605,1775265004909,-151.0,0.00010764,2]
[419665606,1775265004942,-500.0,0.00010764,2]
[419665607,1775265004979,-151.0,0.00010764,2]
[419665608,1775265005016,-151.0,0.00010764,2]
[419665609,1775265005051,-151.0,0.00010764,2]
[419665610,1775265005087,-151.0,0.00010764,2]
[419665611,1775265005124,-151.0,0.00010764,2]
[419665612,1775265005158,-151.0,0.00010764,2]
[419665613,1775265005194,-17.03,0.00010764,2]
[419665614,1775265005286,-133.97,0.00010764,2]
[419665615,1775265005320,-151.0,0.00010764,2]
[419665616,1775265005354,-1232.22,0.00010794,2]
[419665617,1775265005389,-65.63,0.000108,3]
[419665618,1775265007635,-1834.37,0.000108,3]
[419665620,1775265009818,1331.27,9.5e-05,3]
[419665621,1775265009841,5000.01,9.5e-05,3]
[419665622,1775265009863,5000.01,9.5e-05,3]
[419665623,1775265009884,5000.01,9.5e-05,3]
[419665624,1775265009906,5000.01,9.5e-05,3]
[419665625,1775265009928,7209.96460455,9.5e-05,3]
[419665626,1775265009950,10000.01,9.5e-05,3]
[419665627,1775265009972,10000.01,9.5e-05,3]
[419665628,1775265009996,10000.01,9.5e-05,3]
[419665629,1775265010019,10000.01,9.5e-05,3]
[419665630,1775265010040,10000.01,9.5e-05,3]
[419665631,1775265010062,10000.01,9.5e-05,3]
[419665632,1775265010084,10000.01,9.5e-05,3]
[419665633,1775265010106,10000.01,9.5e-05,3]
[419665634,1775265010129,10000.01,9.5e-05,3]
[419665635,1775265025890,-2188.38936274,9.5e-05,3]
[419665636,1775265026200,-10000.01,9.5e-05,3]
[419665637,1775265026255,-10000.01,9.5e-05,3]
[419665638,1775265026322,-10000.01,9.5e-05,3]
[419665639,1775265027999,-10000.01,9.5e-05,3]
[419665640,1775265028078,-10000.01,9.5e-05,3]
[419665641,1775265028233,-10000.01,9.5e-05,3]
[419665642,1775265028294,-10000.01,9.5e-05,3]
[419665643,1775265028419,-2114.55734805,9.5e-05,3]
[419665644,1775265028489,-10000.01,9.5e-05,3]
[419665645,1775265028514,-5000.01,9.5e-05,3]
[419665646,1775265028540,-10000.01,9.5e-05,3]
[419665647,1775265028627,-5000.01,9.5e-05,3]
[419665648,1775265028775,-563.52905192,9.5e-05,3]
[419665649,1775265028799,-3872.95189616,9.5e-05,3]
[419665652,1775265031999,-250.0,0.0001,2]
[419665653,1775265032081,-63.51920489,0.0001,2]
[419665654,1775265032111,-2866.96561746,0.0001,2]
[419665655,1775265032124,-1436.11038423,0.0001,2]
[419665656,1775265032133,-200.0,0.00010847,2]
[419665657,1775265032142,-2500.0,0.000109,3]
[419665658,1775265032151,-500.0,0.00010959,2]
[419665659,1775265032160,-218.50620964,0.00010959,2]
[419665660,1775265032169,-300.0,0.00010999,2]
[419665661,1775265032179,-934.22660666,0.00011,2]
[419665662,1775265032191,-825.57794504,0.00011,2]
[419665663,1775265032200,-250.0,0.00011,2]
[419665664,1775265032209,-4804.42205496,0.00011,2]
[419665665,1775265032221,-195.57794504,0.00011,2]
[419665666,1775265032230,-1000.0,0.00011098,2]
[419665667,1775265032239,-104.42205496,0.00011099,2]
[419665668,1775265032253,-3250.0,0.00011099,2]
[419665669,1775265032273,-253.46543089,0.00011099,2]
[419665670,1775265032284,-811.50471421,0.00011099,2]
[419665671,1775265032296,-1318.96116755,0.00011099,2]
[419665672,1775265032305,-5738.35336752,0.00011099,2]
[419665673,1775265032316,-27448.96200372,0.00011099,2]
[419665674,1775265032327,-384.99787674,0.00011099,2]
[419665675,1775265032337,-171.8,0.00011121,2]
[419665676,1775265032346,-171.8,0.00011121,2]
[419665677,1775265032356,-1008.47953738,0.00011121,2]
[419665678,1775265032365,-437.60123206,0.00011121,2]
[419665679,1775265032374,-150.0,0.00011195,2]
[419665680,1775265032384,-425.0,0.00011218,2]
[419665681,1775265032393,-175.51,0.00011225,2]
[419665682,1775265032402,-171.7,0.00011225,2]
[419665683,1775265032411,-171.7,0.00011225,2]
[419665684,1775265032421,-171.7,0.00011225,2]
[419665685,1775265032430,-171.7,0.00011225,2]
[419665686,1775265032439,-617.0,0.0001124,2]
[419665687,1775265032448,-296.0,0.00011254,2]
[419665688,1775265032458,-300.0,0.00011574,2]
[419665689,1775265032467,-250.0,0.00011581,2]
[419665690,1775265032477,-600.0,0.00011581,2]
[419665691,1775265032486,-600.0,0.00011581,2]
[419665692,1775265032495,-600.0,0.00011581,2]
[419665693,1775265032504,-600.0,0.00011581,2]
[419665694,1775265032513,-600.0,0.00011581,2]
[419665695,1775265032522,-1680.0,0.00011629,2]
[419665696,1775265032531,-5000.0,0.00011629,2]
[419665697,1775265032541,-378.39215086,0.00011629,2]
[419665698,1775265032550,-5738.35336752,0.00011645,2]
[419665699,1775265032559,-1852.42,0.00012083,2]
[419665700,1775265032568,-299.99,0.00012087,2]
[419665701,1775265032578,-9999.99,0.00012087,2]
[419665702,1775265032587,-150.99,0.00012087,2]
[419665703,1775265032596,-5738.35336752,0.00012253,2]
[419665704,1775265032606,-1403.6,0.00012356,2]
[419665705,1775265032615,-500.0,0.00012393,2]
[419665706,1775265032624,-326.0,0.00012792,2]
[419665707,1775265032633,-5738.35336752,0.00012861,2]
[419665708,1775265032642,-172.59744176,0.00012987,2]
[419665709,1775265032651,-151.19174402,0.00012987,2]
[419665710,1775265032661,-57148.08051727,0.00012999,2]
[419665716,1775265038080,-556.91786404,0.00012999,2]
[419665717,1775265038197,-753.25136983,0.00012999,2]
[419665718,1775265038296,-471.87366345,0.00012999,2]
[419665726,1775265038527,-8451.28262301,0.00012999,2]
[419665731,1775265038564,-514.9924831,0.00012999,2]
[419665747,1775265040531,-953.00079936,0.00012999,2]
[419665748,1775265040686,-19926.8905289,0.00012999,2]
[419665749,1775265040698,-1045.19488352,0.00012999,2]
[419665772,1775265044009,-20010.77315398,0.00012999,2]
[419665775,1775265044022,-3198.82868942,0.00012999,2]
[419665776,1775265044034,-914.69544861,0.00012999,2]
[419665777,1775265044055,-7393.1595302,0.00012999,2]
[419665778,1775265044064,-345.0,0.00012999,2]
[419665779,1775265044074,-250.0,0.00013,2]
[419665780,1775265044084,-1806.8261483,0.00013,15]
[419665781,1775265044094,-200.0,0.00013067,2]
[419665782,1775265044104,-364.0,0.00013067,2]
[419665783,1775265044114,-337.0,0.00013093,2]
[419665784,1775265044124,-514.0,0.00013111,2]
[419665785,1775265044134,-514.00006,0.00013111,2]
[419665786,1775265044145,-514.0,0.00013111,2]
[419665787,1775265044155,-3240.0,0.00013425,2]
[419665788,1775265044165,-5738.35336752,0.00013468,2]
[419665789,1775265044175,-166.66,0.00013699,2]
[419665790,1775265044186,-27833.95988041,0.00013826,2]
[419665791,1775265044196,-166.66,0.00013844,2]
[419665792,1775265044207,-2000.0,0.00013864,2]
[419665793,1775265044217,-2446.62997154,0.00013889,2]
[419665794,1775265044227,-3200.0,0.000139,5]
[419665795,1775265044237,-24561.63,0.00013985,2]
[419665796,1775265044247,-166.66,0.00013989,2]
[419665797,1775265044258,-5738.35336752,0.00014076,2]
[419665798,1775265044268,-166.66,0.00014134,2]
[419665799,1775265044277,-166.66,0.0001428,2]
[419665800,1775265044287,-227.7,0.00014425,2]
[419665801,1775265044297,-166.66,0.00014425,2]
[419665802,1775265044307,-5738.35336752,0.00014684,2]
[419665803,1775265044317,-473.89,0.000147,2]
[419665804,1775265044327,-501.27485544,0.00014705,2]
[419665806,1775265044336,-289.4942112,0.00014908,2]
[419665807,1775265044346,-300.0,0.00015,2]
[419665808,1775265044356,-5738.35336752,0.00015292,2]
[419665809,1775265044365,-2000.0,0.00015597,2]
[419665811,1775265044374,-161.25,0.000157,2]
[419665813,1775265044384,-3556.4,0.00015785,2]
[419665815,1775265044393,-600.0,0.000158,5]
[419665816,1775265044404,-2000.0,0.0001589,2]
[419665818,1775265044413,-68816.70847982,0.00015899,2]
[419665820,1775265044423,-10546.17224373,0.000159,2]
[419665822,1775265044432,-600.0,0.000159,5]
[419665824,1775265044442,-5738.35336752,0.000159,2]
[419665826,1775265044452,-1227.85764965,0.000159,2]
[419665828,1775265044461,-150.71162126,0.000159,2]
[419665829,1775265044470,-500.0,0.00015973,2]
[419665830,1775265044480,-500.0,0.00015973,2]
[419665831,1775265044490,-169.59998525,0.00015984,2]
[419665832,1775265044500,-217.21806696,0.0001599,2]
[419665833,1775265044512,-217.21806696,0.0001599,2]
[419665834,1775265044521,-151.0,0.00015997,2]
[419665835,1775265044531,-7601901.20741891,0.00016,2]
[419665836,1775265045399,-3246.806835,0.00016,2]
[419665837,1775265045637,-2039.44840177,0.00016,2]
[419665838,1775265045684,-835.27008091,0.00016,2]
[419665839,1775265049818,-514.0,0.00013111,2]
[419665840,1775265049828,-10784.46850731,0.00016,2]
[419665841,1775265050293,-1322.42688733,0.00016,2]
[419665846,1775265090771,479.00025888,0.0001,2]
[419665847,1775265098455,150.0,0.000158,120]
[419665849,1775265716819,10000.01,0.00010995,2]
[419665850,1775265716843,2542.537556,0.00010995,2]
[419665851,1775265872649,259.63896784,0.00010987,2]
[419665852,1775265896615,159.55,0.00010959,2]
[419665853,1775265917069,150.0,0.00011233,120]
[419665855,1775265957149,1343.51,5.422e-05,2]
[419665856,1775265957349,1343.51,5.707e-05,2]
[419665857,1775265957650,1343.51,5.992e-05,2]
[419665858,1775265957842,1343.51,6.278e-05,2]
[419665859,1775265958031,1343.51,6.563e-05,2]
[419665860,1775265958230,320.73347616,6.848e-05,2]
[419665861,1775265958254,1022.77652384,6.848e-05,2]
[419665862,1775265958426,1343.51,7.134e-05,2]
[419665863,1775265958620,1343.51,7.419e-05,2]
[419665864,1775265958816,1343.51,7.704e-05,2]
[419665865,1775265959001,1343.51,7.99e-05,2]
[419665866,1775265959201,1343.51,8.275e-05,2]
[419665867,1775265959390,1343.51,8.56e-05,2]
[419665868,1775265959576,916.17347616,8.846e-05,2]
[419665869,1775265959599,427.33652384,8.846e-05,2]
[419665870,1775265959761,1343.51,9.131e-05,2]
[419665871,1775265959956,1343.51,9.416e-05,2]
[419665872,1775265960140,1343.51,9.702e-05,2]
[419665873,1775265960336,1343.51,9.987e-05,2]
[419665874,1775265960523,1343.51,0.00010272,2]
[419665875,1775265960731,1343.51,0.00010558,2]
[419665876,1775265960956,1343.51,0.00010843,2]
[419665877,1775265962598,3282.46,0.00010672,2]
[419665878,1775265962620,1717.54,0.00010672,2]
[419665879,1775265962653,5000.0,0.00010383,2]
[419665880,1775265962688,3282.47,0.00010799,2]
[419665881,1775265962710,1717.53,0.00010799,2]
[419665882,1775265962765,300.0,0.00010383,2]
[419665883,1775265977468,150.0,0.00010959,2]
[419665884,1775266019800,163.46,0.00010926,2]
[419665885,1775266044087,-600.0,0.00011064,2]
[419665886,1775266044116,-311.0,0.00011064,2]
[419665887,1775266044140,-412.95420218,0.00011066,2]
[419665888,1775266044164,-3116.76513977,0.00011067,2]
[419665889,1775266044196,-1055.81964232,0.00011067,2]
[419665890,1775266080576,1500.0,0.00010813,2]
[419665891,1775266188027,173.09264522,0.0001097,2]
[419665907,1775266232302,-253.83271447,0.00011067,2]
[419665908,1775266232473,-573.58250344,0.00011067,2]
[419665909,1775266232483,-250.0,0.00011068,2]
[419665910,1775266232492,-600.0,0.00011069,2]
[419665911,1775266232502,-300.0,0.00011069,2]
[419665912,1775266232511,-1200.0,0.00011069,2]
[419665913,1775266232520,-300.0,0.00011069,2]
[419665914,1775266232530,-300.0,0.00011069,2]
[419665915,1775266232549,-20837.81419312,0.00011069,2]
[419665916,1775266232560,-319.77012745,0.0001107,2]
[419665917,1775266232569,-5000.0,0.00011071,2]
[419665918,1775266232578,-1200.0,0.00011071,2]
[419665919,1775266232588,-600.0,0.00011072,2]
[419665920,1775266232597,-600.0,0.00011072,2]
[419665921,1775266232607,-671.38260253,0.00011072,2]
[419665922,1775266232616,-5000.0,0.00011076,2]
[419665923,1775266232626,-655.48,0.00011079,2]
[419665924,1775266232635,-150.0,0.00011233,2]
[419665925,1775266232644,-150.0,0.0001132,2]
[419665926,1775266232654,-539.33561949,0.00011321,2]
[419665928,1775266232663,-539.33561949,0.00011321,2]
[419665929,1775266232672,-539.33561949,0.00011321,2]
[419665931,1775266232681,-439.15,0.0001145,2]
[419665932,1775266232691,-1600.0,0.0001147,2]
[419665933,1775266232700,-173.09264522,0.00011475,2]
[419665934,1775266232709,-261.26504406,0.00011506,2]
[419665935,1775266232719,-2659.88,0.00011507,2]
[419665936,1775266232729,-4359.92,0.00011509,2]
[419665937,1775266232738,-163.46,0.00011533,2]
[419665938,1775266232747,-1301.56,0.00011562,2]
[419665939,1775266232757,-439.15,0.00011724,2]
[419665940,1775266232767,-173.09264522,0.0001198,2]
[419665941,1775266232776,-439.15,0.00011998,2]
[419665942,1775266232785,-182.0,0.00011998,2]
[419665943,1775266232795,-182.0,0.00011998,2]
[419665944,1775266232804,-182.0,0.00011998,2]
[419665945,1775266232814,-182.0,0.00011998,2]
[419665946,1775266232823,-182.0,0.00011998,2]
[419665947,1775266232833,-182.0,0.00011998,2]
[419665948,1775266232843,-182.0,0.00011998,2]
[419665949,1775266232853,-182.0,0.00011998,2]
[419665950,1775266232862,-181.9,0.00011998,2]
[419665951,1775266232872,-24031.21,0.00012055,2]
[419665952,1775266232881,-2157.69240503,0.0001207,2]
[419665953,1775266232890,-685.71695526,0.0001208,2]
[419665954,1775266232899,-500.0,0.0001208,2]
[419665955,1775266232908,-500.0,0.0001208,2]
[419665956,1775266232917,-500.0,0.0001208,2]
[419665957,1775266232927,-500.0,0.0001208,2]
[419665958,1775266232936,-500.0,0.0001208,2]
[419665959,1775266232945,-500.0,0.0001208,2]
[419665960,1775266232954,-500.0,0.0001208,2]
[419665961,1775266232963,-500.0,0.0001208,2]
[419665962,1775266232972,-500.0,0.0001208,2]
[419665963,1775266232981,-500.0,0.0001208,2]
[419665964,1775266232990,-500.0,0.0001208,2]
[419665965,1775266232999,-500.0,0.0001208,2]
[419665966,1775266233009,-151.0,0.0001208,2]
[419665967,1775266233018,-151.0,0.0001208,2]
[419665968,1775266233028,-151.0,0.0001208,2]
[419665969,1775266233038,-151.0,0.0001208,2]
[419665970,1775266233052,-151.0,0.0001208,2]
[419665971,1775266233062,-500.0,0.0001208,2]
[419665972,1775266233072,-151.0,0.0001208,2]
[419665973,1775266233082,-500.0,0.0001208,2]
[419665974,1775266233092,-151.0,0.0001208,2]
[419665975,1775266233102,-500.0,0.0001208,2]
[419665976,1775266233112,-151.0,0.0001208,2]
[419665977,1775266233303,-500.0,0.0001208,2]
[419665978,1775266233373,-151.0,0.0001208,2]
[419665979,1775266233383,-500.0,0.0001208,2]
[419665980,1775266233392,-151.0,0.0001208,2]
[419665981,1775266233402,-500.0,0.0001208,2]
[419665982,1775266233411,-151.0,0.0001208,2]
[419665983,1775266233422,-151.0,0.0001208,2]
[419665984,1775266233432,-500.0,0.0001208,2]
[419665985,1775266233444,-151.0,0.0001208,2]
[419665986,1775266233455,-151.0,0.0001208,2]
[419665987,1775266233467,-500.0,0.0001208,2]
[419665988,1775266233476,-151.0,0.0001208,2]
[419665989,1775266233489,-151.0,0.0001208,2]
[419665990,1775266233500,-500.0,0.0001208,2]
[419665991,1775266233509,-151.0,0.0001208,2]
[419665992,1775266233519,-500.0,0.0001208,2]
[419665993,1775266233529,-151.0,0.0001208,2]
[419665994,1775266233539,-151.0,0.0001208,2]
[419665995,1775266233548,-500.0,0.0001208,2]
[419665996,1775266233558,-151.0,0.0001208,2]
[419665997,1775266233567,-151.0,0.0001208,2]
[419665998,1775266233577,-151.0,0.0001208,2]
[419665999,1775266233586,-151.0,0.0001208,2]
[419666000,1775266233595,-151.0,0.0001208,2]
[419666001,1775266233605,-151.0,0.0001208,2]
[419666002,1775266233614,-151.0,0.0001208,2]
[419666003,1775266233624,-151.0,0.0001208,2]
[419666004,1775266233633,-151.0,0.0001208,2]
[419666005,1775266233643,-151.0,0.0001208,2]
[419666006,1775266233652,-151.0,0.0001208,2]
[419666007,1775266233662,-151.0,0.0001208,2]
[419666008,1775266233672,-1386.78395259,0.0001208,2]
[419666009,1775266233681,-153.59,0.00012087,2]
[419666010,1775266233691,-999.99,0.00012087,2]
[419666011,1775266233700,-150.99,0.00012087,2]
[419666012,1775266233709,-299.99,0.00012087,2]
[419666013,1775266233718,-1266.38,0.00012087,2]
[419666014,1775266233729,-9999.99,0.00012087,2]
[419666015,1775266233739,-3343.96,0.00012087,2]
[419666016,1775266233748,-9999.99,0.00012087,2]
[419666017,1775266233758,-163.46,0.0001214,2]
[419666018,1775266233768,-420.0,0.00012163,2]
[419666019,1775266233778,-300.0,0.00012163,2]
[419666020,1775266233787,-420.0,0.00012163,2]
[419666021,1775266233796,-5000.0,0.0001217,2]
[419666022,1775266233806,-193.0,0.0001217,2]
[419666023,1775266233815,-5000.0,0.0001217,2]
[419666024,1775266233826,-300.0,0.0001217,2]
[419666025,1775266233836,-600.0,0.00012174,2]
[419666026,1775266233845,-250.0,0.00012174,2]
[419666027,1775266233855,-1680.0,0.00012176,2]
[419666028,1775266233864,-439.15,0.00012272,2]
[419666029,1775266233874,-255.0,0.00012373,2]
[419666030,1775266233883,-25942.05916298,0.00012502,2]
[419666031,1775266233893,-439.18,0.00012546,2]
[419666032,1775266233903,-4150.0003,0.00012602,2]
[419666033,1775266233912,-98645.1366,0.00012602,2]